bitfinex/quotes_BTCUSD_20250324
["timestamp","ask_amount","ask_price","bid_price","bid_amount"]
[1742836098893,0.26086292,88236.0,88235.0,0.0044851]
[1742836099303,0.02286592,88236.0,88235.0,0.0044851]
[1742836099487,0.24952992,88236.0,88235.0,0.0044851]
[1742836100247,0.26086292,88236.0,88235.0,0.0044851]
[1742836100470,0.34156292,88236.0,88235.0,0.0044851]
[1742836100675,0.64156292,88236.0,88235.0,0.0044851]
[1742836101073,0.64156292,88236.0,88235.0,0.0014851]
[1742836101280,0.23804,88221.0,88215.0,0.226718]
[1742836101479,0.226705,88220.0,88216.0,0.226715]
[1742836101892,0.226705,88220.0,88218.0,0.22671]
[1742836102096,0.226705,88221.0,88218.0,0.22671]
[1742836102510,0.226705,88220.0,88217.0,0.226713]
[1742836102733,0.226705,88220.0,88218.0,0.226709]
[1742836102941,0.011333,88235.0,88219.0,0.2735532]
[1742836103145,0.226685,88228.0,88225.0,0.226691]
[1742836103359,0.22669,88227.0,88220.0,0.226705]
[1742836103539,0.22669,88227.0,88220.0,0.23732459]
[1742836103743,0.22669,88227.0,88221.0,0.226703]
[1742836103983,0.238021,88228.0,88220.0,0.01061959]
[1742836104184,0.011334,88224.0,88220.0,0.01061959]
[1742836104388,0.23804,88220.0,88219.0,0.000339]
[1742836104541,0.23804,88220.0,88219.0,0.004339]
[1742836104752,0.23804,88220.0,88219.0,0.000339]
[1742836105221,0.23789796,88221.0,88219.0,0.000339]
[1742836105428,0.302483,88229.0,88219.0,0.0241779]
[1742836105429,0.226683,88229.0,88219.0,0.0241779]
[1742836105633,0.03418403,88230.0,88221.0,0.226703]
[1742836105954,0.03418403,88230.0,88221.0,0.226702]
[1742836105955,0.238026,88226.0,88221.0,0.226702]
[1742836106175,0.226695,88225.0,88221.0,0.226703]
[1742836106311,0.226695,88225.0,88220.0,0.003]
[1742836106312,0.238029,88225.0,88220.0,0.003]
[1742836106535,0.011334,88229.0,88224.0,0.226693]
[1742836106977,0.226687,88228.0,88225.0,0.226693]
[1742836107220,0.226693,88225.0,88222.0,0.226699]
[1742836107464,0.238024,88227.0,88221.0,0.002]
[1742836107465,0.226691,88226.0,88224.0,0.226693]
[1742836107693,0.226691,88226.0,88221.0,0.002]
[1742836107694,0.238025,88226.0,88221.0,0.002]
[1742836107915,0.238025,88226.0,88219.0,0.229046]
[1742836108123,0.011334,88229.0,88220.0,0.0467099]
[1742836108341,0.226688,88227.0,88219.0,0.000339]
[1742836108588,0.226688,88227.0,88224.0,0.226694]
[1742836108813,0.226688,88227.0,88223.0,0.226697]
[1742836108814,0.238022,88227.0,88223.0,0.226697]
[1742836108948,0.22669,88227.0,88223.0,0.226698]
[1742836109145,0.226695,88225.0,88222.0,0.002]
[1742836109353,0.011334,88228.0,88225.0,0.002]
[1742836109786,0.22669,88226.0,88225.0,0.002]
[1742836110419,0.011334,88227.0,88222.0,0.2267]
[1742836110631,0.226687,88228.0,88223.0,0.226698]
[1742836110847,0.011334,88228.0,88224.0,0.226693]
[1742836111295,0.226687,88227.0,88224.0,0.226693]
[1742836111496,0.226685,88228.0,88225.0,0.226691]
[1742836111704,0.226691,88226.0,88223.0,0.226698]
[1742836111914,0.226685,88228.0,88225.0,0.226693]
[1742836112117,0.226685,88228.0,88224.0,0.002]
[1742836112118,0.01120033,88229.0,88224.0,0.002]
[1742836112326,0.226685,88228.0,88225.0,0.226693]
[1742836112534,0.226689,88227.0,88225.0,0.226693]
[1742836112738,0.226685,88228.0,88225.0,0.228693]
[1742836112942,0.226685,88228.0,88225.0,0.226693]
[1742836113142,0.226688,88227.0,88224.0,0.226695]
[1742836113345,0.226693,88225.0,88223.0,0.002]
[1742836113553,0.238022,88227.0,88223.0,0.228697]
[1742836113778,0.238021,88228.0,88225.0,0.22669]
[1742836114021,0.226688,88227.0,88223.0,0.228697]
[1742836114227,0.226688,88227.0,88224.0,0.226695]
[1742836114228,0.226687,88227.0,88224.0,0.226695]
[1742836114627,0.22669,88226.0,88225.0,0.002]
[1742836115055,0.22669,88226.0,88223.0,0.226697]
[1742836115201,0.22669,88226.0,88223.0,0.228697]
[1742836115616,0.226695,88224.0,88223.0,0.002]
[1742836115814,0.238025,88226.0,88225.0,0.002]
[1742836116224,0.23804,88220.0,88219.0,0.000339]
[1742836119011,0.23804,88220.0,88219.0,0.004339]
[1742836121785,0.23804,88220.0,88219.0,0.00164008]
[1742836125362,0.011334,88226.0,88219.0,0.00164008]
[1742836125363,0.02285003,88230.0,88222.0,0.2267]
[1742836125566,0.01144495,88229.0,88223.0,0.02283401]
[1742836125772,0.02285003,88230.0,88227.0,0.226685]
[1742836126168,0.03418403,88230.0,88222.0,0.2267]
[1742836126396,0.226687,88228.0,88224.0,0.226695]
[1742836126596,0.011334,88229.0,88223.0,0.226698]
[1742836126896,0.011334,88229.0,88219.0,0.0003396]
[1742836126897,0.011334,88225.0,88219.0,0.0003396]
[1742836127102,0.226686,88228.0,88225.0,0.226693]
[1742836127504,0.226686,88228.0,88224.0,0.226695]
[1742836127505,0.22669,88226.0,88224.0,0.226695]
[1742836127737,0.226689,88227.0,88224.0,0.226695]
[1742836127901,0.226689,88227.0,88223.0,0.226697]
[1742836128122,0.226688,88227.0,88222.0,0.2267]
[1742836128324,0.238022,88227.0,88222.0,0.2267]
[1742836128528,0.226695,88224.0,88219.0,0.0003396]
[1742836128690,0.226705,88220.0,88219.0,0.0003396]
[1742836129117,0.226698,88223.0,88221.0,0.226703]
[1742836129313,0.2267,88223.0,88220.0,0.226704]
[1742836129520,0.03418403,88230.0,88221.0,0.226703]
[1742836129724,0.226696,88224.0,88221.0,0.226703]
[1742836130315,0.238019,88228.0,88221.0,0.001]
[1742836130515,0.22669,88226.0,88224.0,0.226693]
[1742836130765,0.226689,88227.0,88224.0,0.226693]
[1742836130974,0.226689,88227.0,88225.0,0.226692]
[1742836131379,0.226689,88227.0,88220.0,0.226705]
[1742836131830,0.22669,88226.0,88222.0,0.2267]
[1742836132000,0.03418403,88230.0,88226.0,0.22669]
[1742836132165,0.226689,88227.0,88224.0,0.226693]
[1742836132369,0.226689,88227.0,88224.0,0.226695]
[1742836132575,0.226689,88227.0,88224.0,0.226694]
[1742836133174,0.226689,88227.0,88219.0,0.0003396]
[1742836133380,0.226698,88223.0,88219.0,0.0003396]
[1742836133576,0.226689,88227.0,88225.0,0.226692]
[1742836133871,0.226685,88228.0,88221.0,0.226695]
[1742836134279,0.226688,88227.0,88224.0,0.226695]
[1742836134705,0.226688,88227.0,88224.0,0.226694]
[1742836135034,0.226688,88227.0,88223.0,0.226693]
[1742836135159,0.226688,88227.0,88224.0,0.226694]
[1742836135421,0.226688,88227.0,88221.0,0.226703]
[1742836135422,0.22669,88226.0,88221.0,0.226703]
[1742836135617,0.22669,88226.0,88223.0,0.226696]
[1742836135826,0.011334,88227.0,88223.0,0.226696]
[1742836135827,0.226687,88227.0,88223.0,0.226696]
[1742836136028,0.011334,88228.0,88225.0,0.226692]
[1742836136233,0.226687,88227.0,88224.0,0.226694]
[1742836136448,0.011334,88225.0,88221.0,0.226703]
[1742836136708,0.226695,88224.0,88221.0,0.226703]
[1742836136914,0.22669,88226.0,88223.0,0.226697]
[1742836137069,0.011334,88226.0,88219.0,0.0003396]
[1742836137270,0.011334,88227.0,88220.0,0.2267]
[1742836137469,0.226688,88227.0,88225.0,0.226692]
[1742836137819,0.226693,88225.0,88221.0,0.04877616]
[1742836138069,0.226692,88226.0,88223.0,0.226696]
[1742836138454,0.226688,88227.0,88224.0,0.226694]
[1742836138627,0.2268579,88227.0,88224.0,0.226694]
[1742836138834,0.22669,88226.0,88222.0,0.2267]
[1742836139062,0.226695,88225.0,88222.0,0.2267]
[1742836139835,0.226695,88225.0,88220.0,0.226705]
[1742836140041,0.226695,88224.0,88220.0,0.226705]
[1742836140249,0.0001699,88227.0,88222.0,0.2267]
[1742836140413,0.0001699,88227.0,88226.0,0.22669]
[1742836140634,0.0001699,88227.0,88219.0,0.0474396]
[1742836141040,0.0001699,88227.0,88226.0,0.22669]
[1742836147337,0.0001699,88227.0,88226.0,0.23730452]
[1742836147770,0.0001699,88227.0,88226.0,0.36289616]
[1742836147993,0.0001699,88227.0,88226.0,0.62171616]
[1742836148413,0.0001699,88227.0,88226.0,0.49259616]
[1742836148619,0.0001699,88227.0,88226.0,0.62171616]
[1742836149907,0.0001699,88227.0,88226.0,0.62571616]
[1742836150114,0.0001699,88227.0,88226.0,0.7359738]
[1742836150296,0.0001699,88227.0,88226.0,0.7473401]
[1742836150535,0.0001699,88227.0,88226.0,0.7503401]
[1742836151494,0.0001699,88227.0,88226.0,0.7543401]
[1742836152520,0.0001699,88227.0,88226.0,0.7429738]
[1742836153157,0.0001699,88227.0,88226.0,0.73235928]
[1742836159888,9e-07,88227.0,88226.0,1.06767704]
[1742836165632,9e-07,88227.0,88226.0,1.09038176]
[1742836176596,9e-07,88227.0,88226.0,1.62946176]
[1742836177009,0.0001698,88235.0,88234.0,0.538002]
[1742836177241,0.0001698,88235.0,88234.0,0.67514371]
[1742836178408,0.0001698,88235.0,88234.0,0.67614371]
[1742836178619,0.0001698,88235.0,88234.0,0.67714371]
[1742836179677,8e-07,88235.0,88234.0,0.67714371]
[1742836179882,9.2e-07,88236.0,88235.0,0.68044085]
[1742836180096,9.2e-07,88236.0,88235.0,0.90895613]
[1742836180314,9.2e-07,88236.0,88235.0,0.94426165]
[1742836181454,9.2e-07,88236.0,88235.0,0.95026165]
[1742836182306,9.2e-07,88236.0,88235.0,0.95626165]
[1742836192294,0.0491,88267.0,88265.0,0.226587]
[1742836192508,0.0796,88266.0,88264.0,0.226587]
[1742836192681,0.0796,88266.0,88265.0,0.22659]
[1742836194862,0.0816,88266.0,88265.0,0.22659]
[1742836198850,0.0816,88266.0,88264.0,0.226592]
[1742836199023,0.0816,88266.0,88264.0,0.0820165]
[1742836199024,0.226592,88265.0,88264.0,0.0820165]
[1742836199225,0.0816,88266.0,88264.0,0.226592]
[1742836199427,0.0817698,88266.0,88265.0,0.22659]
[1742836200087,0.0807698,88266.0,88265.0,0.22659]
[1742836200292,0.0797698,88266.0,88265.0,0.22659]
[1742836200500,0.0807698,88266.0,88265.0,0.22659]
[1742836200647,0.0817698,88266.0,88265.0,0.22659]
[1742836200852,0.0807698,88266.0,88265.0,0.3086049]
[1742836201077,0.0797698,88266.0,88265.0,0.3086049]
[1742836201237,0.0807698,88266.0,88265.0,0.0820149]
[1742836201443,0.0817698,88266.0,88264.0,0.226592]
[1742836201866,0.0817698,88266.0,88265.0,0.22659]
[1742836202279,0.10422138,88266.0,88264.0,0.226592]
[1742836202473,0.10411736,88266.0,88264.0,0.226592]
[1742836202675,0.10411736,88266.0,88265.0,0.22659]
[1742836203537,0.10211736,88266.0,88265.0,0.22659]
[1742836203913,0.10411736,88266.0,88265.0,0.3108709]
[1742836204066,0.08066578,88266.0,88265.0,0.3108709]
[1742836204275,0.07966578,88266.0,88265.0,0.3108709]
[1742836204454,0.08066578,88266.0,88265.0,0.3108709]
[1742836205310,0.08166578,88266.0,88265.0,0.3108709]
[1742836209518,0.0021698,88266.0,88265.0,0.3108709]
[1742836209722,0.0021698,88266.0,88265.0,0.3221999]
[1742836209930,0.0021698,88266.0,88265.0,0.43645754]
[1742836210762,0.0011698,88266.0,88265.0,0.43645754]
[1742836211156,0.0011698,88266.0,88265.0,0.56545754]
[1742836211591,0.0001698,88266.0,88265.0,0.56545754]
[1742836212021,0.0001698,88266.0,88265.0,0.57145754]
[1742836212249,0.0001698,88266.0,88265.0,0.57179694]
[1742836214688,0.0114988,88266.0,88265.0,0.0063394]
[1742836214897,0.2874858,88266.0,88265.0,0.0063394]
[1742836215260,0.0495698,88266.0,88265.0,0.0063394]
[1742836215779,0.0495698,88266.0,88265.0,0.2329294]
[1742836215991,0.0495698,88266.0,88265.0,0.3348113]
[1742836216167,0.0495698,88266.0,88265.0,0.3318113]
[1742836216592,0.0495698,88266.0,88265.0,0.3288113]
[1742836216992,0.0495698,88266.0,88265.0,0.3298113]
[1742836217193,0.07234243,88266.0,88265.0,0.3298113]
[1742836217597,0.07234243,88266.0,88265.0,0.1032213]
[1742836217824,0.39105843,88266.0,88265.0,0.1042213]
[1742836218611,0.39105843,88266.0,88265.0,0.1032213]
[1742836218820,0.39305843,88266.0,88265.0,0.1032213]
[1742836219021,0.38172943,88266.0,88265.0,0.0013394]
[1742836219218,0.15514243,88266.0,88265.0,0.0013394]
[1742836219423,0.37972943,88266.0,88265.0,0.0013394]
[1742836220403,0.39105843,88266.0,88265.0,0.0013394]
[1742836220541,0.39105843,88266.0,88265.0,0.0003394]
[1742836220964,0.39305843,88266.0,88265.0,0.0003394]
[1742836221368,0.39505843,88266.0,88265.0,0.0003394]
[1742836221568,0.39705843,88266.0,88265.0,0.0003394]
[1742836227152,0.39705843,88266.0,88265.0,0.06835384]
[1742836227301,0.39705843,88266.0,88265.0,0.0003394]
[1742836228657,0.10974243,88266.0,88265.0,0.0003394]
[1742836228904,0.02894243,88266.0,88265.0,0.0003394]
[1742836229110,0.25552943,88266.0,88265.0,0.0003394]
[1742836229308,0.26685843,88266.0,88265.0,0.0003394]
[1742836229847,0.26085843,88266.0,88265.0,0.0003394]
[1742836230051,0.26185843,88266.0,88265.0,0.0003394]
[1742836231501,0.26385843,88266.0,88265.0,0.0003394]
[1742836233826,0.25252943,88266.0,88265.0,0.04569414]
[1742836234052,0.25252943,88266.0,88265.0,0.0003394]
[1742836234285,0.02594243,88266.0,88265.0,0.2269294]
[1742836234624,0.25252943,88266.0,88265.0,0.0003394]
[1742836237051,0.02594243,88266.0,88265.0,0.0003394]
[1742836237236,0.25252943,88266.0,88265.0,0.0003394]
[1742836237859,0.26385843,88266.0,88265.0,0.0003394]
[1742836238727,0.34065843,88266.0,88265.0,0.0003394]
[1742836239131,0.34065843,88266.0,88265.0,0.02303324]
[1742836242139,0.34065843,88266.0,88265.0,0.0003394]
[1742836246010,0.26385843,88266.0,88265.0,0.0003394]
[1742836248145,0.02594243,88266.0,88265.0,0.0003394]
[1742836248354,0.25252943,88266.0,88265.0,0.0003394]
[1742836248547,0.26385843,88266.0,88265.0,0.0003394]
[1742836258104,0.0031698,88266.0,88265.0,0.2269294]
[1742836258325,0.2297568,88266.0,88265.0,0.0003394]
[1742836258612,0.2410858,88266.0,88265.0,0.0003394]
[1742836260198,0.0031698,88266.0,88265.0,0.35251604]
[1742836260401,0.0031698,88266.0,88265.0,0.43535374]
[1742836260653,9.5e-07,88267.0,88266.0,0.237916]
[1742836260901,0.001,88301.0,88285.0,0.367865]
[1742836261160,0.001,88301.0,88285.0,1.02008264]
[1742836261411,0.001,88301.0,88285.0,1.0742161]
[1742836261938,0.227498,88301.0,88285.0,1.0742161]
[1742836262191,0.001,88301.0,88285.0,1.0742161]
[1742836262683,0.237828,88299.0,88285.0,0.9965161]
[1742836262952,0.226503,88299.0,88285.0,0.9965161]
[1742836263199,0.22651,88297.0,88285.0,0.8192561]
[1742836263450,0.226513,88295.0,88285.0,0.9482161]
[1742836263712,0.011325,88297.0,88285.0,0.82763246]
[1742836263904,0.237845,88293.0,88285.0,0.82763246]
[1742836264137,0.237836,88296.0,88285.0,0.83895846]
[1742836264342,0.226518,88293.0,88285.0,0.83895846]
[1742836264538,0.011325,88295.0,88285.0,0.60109346]
[1742836264747,0.2380314,88286.0,88285.0,0.418]
[1742836265434,0.0001694,88286.0,88285.0,0.418]
[1742836265698,0.0001694,88286.0,88285.0,0.413]
[1742836265966,0.2267054,88286.0,88285.0,0.413]
[1742836266265,0.0001694,88286.0,88285.0,0.413]
[1742836266502,0.0001694,88286.0,88285.0,0.11825764]
[1742836266760,0.0001694,88286.0,88285.0,0.007]
[1742836266761,0.2267054,88286.0,88285.0,0.007]
[1742836266997,0.2267054,88286.0,88285.0,0.003]
[1742836267236,0.2267054,88286.0,88285.0,0.005]
[1742836267508,0.2380314,88286.0,88285.0,0.005]
[1742836267756,0.23825203,88286.0,88285.0,0.005]
[1742836268558,0.24957803,88286.0,88285.0,0.005]
[1742836269691,0.0001694,88286.0,88285.0,0.005]
[1742836269911,0.0001694,88286.0,88285.0,0.239865]
[1742836270152,0.0011694,88286.0,88285.0,0.2867709]
[1742836270355,0.0021694,88286.0,88285.0,0.2867709]
[1742836270644,0.0021694,88286.0,88285.0,0.0489059]
[1742836270850,0.0011694,88286.0,88284.0,0.226539]
[1742836271125,0.0001694,88286.0,88285.0,0.226539]
[1742836271565,0.0001694,88286.0,88285.0,0.239865]
[1742836272031,0.0001694,88286.0,88285.0,0.349238]
[1742836273424,0.0001694,88286.0,88285.0,0.347238]
[1742836273670,0.0001694,88286.0,88285.0,0.349238]
[1742836273928,0.0001694,88286.0,88285.0,0.46349564]
[1742836274591,0.0001694,88286.0,88285.0,0.46549564]
[1742836275602,0.0001694,88286.0,88285.0,0.35612264]
[1742836275830,0.0001694,88286.0,88285.0,0.359459]
[1742836276171,0.0001694,88286.0,88285.0,0.370785]
[1742836276565,0.0001694,88286.0,88285.0,0.368785]
[1742836276974,0.0001694,88286.0,88285.0,0.370785]
[1742836277195,0.0001694,88286.0,88285.0,0.373785]
[1742836277400,0.0001694,88286.0,88285.0,0.4822256]
[1742836278020,0.0001694,88286.0,88285.0,0.13592]
[1742836278434,0.0001694,88286.0,88285.0,0.362459]
[1742836280121,0.0001694,88286.0,88285.0,0.233539]
[1742836281647,0.0001694,88286.0,88285.0,0.244865]
[1742836284414,0.0001694,88286.0,88285.0,0.233539]
[1742836284622,0.0001694,88286.0,88285.0,0.007]
[1742836284838,0.0001694,88286.0,88285.0,0.233539]
[1742836285047,0.0001694,88286.0,88285.0,0.007]
[1742836285261,0.0001694,88286.0,88285.0,0.233539]
[1742836285488,0.0001694,88286.0,88285.0,0.007]
[1742836285711,0.2267054,88286.0,88285.0,0.007]
[1742836286122,0.0001694,88286.0,88285.0,0.007]
[1742836286326,0.2267054,88286.0,88285.0,0.007]
[1742836286533,0.0001694,88286.0,88285.0,0.007]
[1742836287258,0.0001694,88286.0,88285.0,0.233539]
[1742836287468,0.0001694,88286.0,88285.0,0.007]
[1742836287895,0.0001694,88286.0,88285.0,0.233539]
[1742836288434,0.0001694,88286.0,88285.0,0.230539]
[1742836288856,0.2267054,88286.0,88285.0,0.007]
[1742836289062,0.0001694,88286.0,88285.0,0.007]
[1742836289295,0.0001694,88286.0,88285.0,0.233539]
[1742836289916,0.0001694,88286.0,88285.0,0.229539]
[1742836290119,0.0001694,88286.0,88285.0,0.232539]
[1742836290964,0.0001694,88286.0,88285.0,0.006]
[1742836291172,0.3201314,88286.0,88285.0,0.006]
[1742836291398,0.3660314,88286.0,88285.0,0.006]
[1742836292028,0.3660314,88286.0,88285.0,0.003]
[1742836292234,0.6660314,88286.0,88285.0,0.003]
[1742836292433,0.6660314,88286.0,88285.0,0.004]
[1742836292633,0.79482989,88286.0,88285.0,0.004]
[1742836292840,0.79482989,88286.0,88285.0,0.003]
[1742836294328,0.237873,88282.0,88281.0,0.0003394]
[1742836294539,0.36667149,88282.0,88281.0,0.0003394]
[1742836294795,0.237873,88282.0,88281.0,0.0003394]
[1742836295002,0.237873,88282.0,88281.0,0.02302944]
[1742836295624,0.238873,88282.0,88281.0,0.0003394]
[1742836297821,0.26152532,88282.0,88281.0,0.0003394]
[1742836298952,0.27606617,88282.0,88281.0,0.0003394]
[1742836299775,0.40106617,88282.0,88281.0,0.0003394]
[1742836303481,0.81532381,88282.0,88281.0,0.0003394]
[1742836304326,0.82272923,88282.0,88281.0,0.0003394]
[1742836304776,0.82472923,88282.0,88281.0,0.0003394]
[1742836306004,0.82572923,88282.0,88281.0,0.0003394]
[1742836309970,0.70306617,88282.0,88281.0,0.0003394]
[1742836311476,0.82574454,88282.0,88281.0,0.0003394]
[1742836312538,0.82374454,88282.0,88281.0,0.0003394]
[1742836312745,0.82274454,88282.0,88281.0,4e-07]
[1742836312945,0.616005,88270.0,88269.0,0.2407]
[1742836313153,0.79070349,88270.0,88269.0,0.2407]
[1742836313541,0.79070349,88270.0,88269.0,0.2401233]
[1742836315385,0.82360446,88270.0,88269.0,0.2401233]
[1742836315594,0.79070349,88270.0,88269.0,0.2401233]
[1742836316017,0.79570349,88270.0,88269.0,0.2401233]
[1742836316956,0.79570349,88270.0,88269.0,0.2404627]
[1742836320901,0.92458349,88270.0,88269.0,0.2404627]
[1742836321601,0.92458349,88270.0,88269.0,0.0003394]
[1742836323278,0.79570349,88270.0,88269.0,0.0003394]
[1742836323523,0.542905,88270.0,88269.0,0.0003394]
[1742836323735,0.005,88270.0,88269.0,0.2269194]
[1742836323915,0.005,88270.0,88269.0,0.38767428]
[1742836325173,0.005,88270.0,88269.0,0.50193192]
[1742836325391,0.0001697,88282.0,88276.0,0.226561]
[1742836325621,0.2267167,88282.0,88279.0,0.226554]
[1742836325828,0.0001697,88282.0,88280.0,0.22655]
[1742836326037,0.0001697,88282.0,88281.0,0.226549]
[1742836326660,0.0001697,88282.0,88281.0,0.314576]
[1742836326872,0.0001697,88282.0,88281.0,0.303249]
[1742836327079,0.0011697,88282.0,88281.0,0.303249]
[1742836327685,0.0011697,88282.0,88281.0,0.51056114]
[1742836327889,0.0011697,88282.0,88281.0,0.42883364]
[1742836328924,0.0001697,88282.0,88281.0,0.47473364]
[1742836329358,0.0001697,88282.0,88281.0,0.47673364]
[1742836329980,0.0001697,88282.0,88281.0,0.48173364]
[1742836330450,0.0001697,88282.0,88281.0,0.59599128]
[1742836330710,0.0001697,88282.0,88281.0,0.5995162]
[1742836331191,0.0001697,88282.0,88281.0,0.48525856]
[1742836331630,0.0001697,88282.0,88281.0,0.61409856]
[1742836332104,0.0001697,88282.0,88281.0,0.60757364]
[1742836332805,0.0001697,88282.0,88281.0,1.02157364]
[1742836333061,0.0001697,88282.0,88281.0,0.89273364]
[1742836333302,0.0001697,88282.0,88281.0,1.03249856]
[1742836333567,0.0001697,88282.0,88281.0,1.1467562]
[1742836335225,0.0001697,88282.0,88281.0,1.03249856]
[1742836337150,0.0001697,88282.0,88281.0,1.03349856]
[1742836338864,0.0001697,88282.0,88281.0,0.90325856]
[1742836339078,0.0001697,88282.0,88281.0,1.03497856]
[1742836339321,0.0001697,88282.0,88281.0,0.90325856]
[1742836339527,0.0001697,88282.0,88281.0,1.1492762]
[1742836340604,0.0001697,88282.0,88281.0,1.03501856]
[1742836340779,0.0001697,88282.0,88281.0,0.90325856]
[1742836341190,0.0001697,88282.0,88281.0,1.03557856]
[1742836348321,0.0001697,88282.0,88281.0,1.02505364]
[1742836349408,0.01,88300.0,88299.0,0.011325]
[1742836349625,0.01,88300.0,88299.0,1.17559834]
[1742836349852,0.01012345,88300.0,88299.0,1.25503404]
[1742836350551,0.01012345,88300.0,88299.0,1.12231404]
[1742836350790,0.01012345,88300.0,88299.0,1.26099404]
[1742836350989,0.01012345,88300.0,88299.0,1.26699404]
[1742836351197,0.01012345,88300.0,88299.0,1.27751896]
[1742836351411,0.01012345,88300.0,88299.0,1.27151896]
[1742836351536,0.0001699,88325.0,88315.0,0.226462]
[1742836351737,7e-07,88317.0,88316.0,0.537781]
[1742836351953,7.06e-05,88317.0,88316.0,0.69126714]
[1742836352841,7.06e-05,88317.0,88316.0,0.71040604]
[1742836353041,7.06e-05,88317.0,88316.0,0.71440604]
[1742836353880,7.06e-05,88317.0,88316.0,0.81979196]
[1742836354095,7.06e-05,88317.0,88316.0,0.95271196]
[1742836355820,7.06e-05,88317.0,88316.0,0.01952492]
[1742836356069,7.06e-05,88317.0,88316.0,0.24598392]
[1742836356520,7.06e-05,88317.0,88316.0,0.235459]
[1742836357038,7.06e-05,88317.0,88316.0,0.246781]
[1742836357913,7.06e-05,88317.0,88316.0,0.25730592]
[1742836359389,7.06e-05,88317.0,88316.0,0.37156356]
[1742836359603,7.06e-05,88317.0,88316.0,0.25730592]
[1742836360522,7.06e-05,88317.0,88316.0,0.246781]
[1742836361089,7.06e-05,88317.0,88316.0,0.235459]
[1742836362085,0.01116039,88317.0,88316.0,0.235459]
[1742836362551,0.01116039,88317.0,88316.0,0.009]
[1742836362783,0.37853839,88317.0,88316.0,0.009]
[1742836363903,0.37853839,88317.0,88306.0,0.226482]
[1742836363904,0.226479,88309.0,88306.0,0.226482]
[1742836364109,0.237802,88309.0,88305.0,0.226487]
[1742836364605,0.226482,88308.0,88305.0,0.226487]
[1742836365026,0.237802,88309.0,88305.0,0.226487]
[1742836365239,0.226481,88308.0,88306.0,0.004]
[1742836365673,0.226482,88307.0,88306.0,0.004]
[1742836365871,0.226485,88306.0,88302.0,0.226495]
[1742836366099,0.237799,88310.0,88298.0,0.02184992]
[1742836366100,0.226473,88311.0,88308.0,0.226477]
[1742836366323,0.011323,88312.0,88306.0,0.003]
[1742836366528,0.226477,88309.0,88306.0,0.226482]
[1742836366764,0.011323,88311.0,88306.0,0.226482]
[1742836366765,0.226476,88310.0,88306.0,0.226482]
[1742836366960,0.226476,88310.0,88307.0,0.226481]
[1742836367084,0.237796,88311.0,88308.0,0.226479]
[1742836367085,0.226474,88311.0,88308.0,0.226479]
[1742836367317,0.226474,88311.0,88307.0,0.30042048]
[1742836367526,0.226475,88310.0,88307.0,0.226482]
[1742836367940,0.226475,88310.0,88306.0,0.226484]
[1742836368145,0.226474,88311.0,88307.0,0.226481]
[1742836368437,0.226474,88311.0,88308.0,0.226479]
[1742836368680,0.011323,88313.0,88308.0,0.22648]
[1742836368910,0.226472,88311.0,88307.0,0.229481]
[1742836369142,0.226472,88311.0,88308.0,0.226479]
[1742836369345,0.226474,88312.0,88309.0,0.226477]
[1742836369817,0.226469,88312.0,88308.0,0.229479]
[1742836370043,0.226469,88312.0,88308.0,0.231479]
[1742836370283,0.226469,88312.0,88309.0,0.226477]
[1742836370518,0.226477,88310.0,88308.0,0.229479]
[1742836370759,0.226477,88310.0,88309.0,0.002]
[1742836370992,0.226477,88310.0,88308.0,0.22948]
[1742836371223,0.237796,88311.0,88308.0,0.22948]
[1742836371224,0.226473,88311.0,88309.0,0.226476]
[1742836371469,0.03438627,88317.0,88314.0,0.226464]
[1742836371696,0.03438627,88317.0,88316.0,0.226459]
[1742836372797,0.01133009,88317.0,88316.0,0.226459]
[1742836373920,0.0002403,88317.0,88316.0,0.4554827]
[1742836374154,0.0002403,88317.0,88316.0,0.35203864]
[1742836374380,0.0002403,88317.0,88316.0,0.35303864]
[1742836374591,0.0002403,88317.0,88316.0,0.34171664]
[1742836375023,0.0002403,88317.0,88316.0,0.229459]
[1742836375413,0.0002403,88317.0,88316.0,0.35503864]
[1742836375610,0.0002403,88317.0,88316.0,0.46729628]
[1742836376036,0.0002403,88317.0,88316.0,0.35503864]
[1742836376248,0.0002403,88317.0,88316.0,0.35703864]
[1742836377473,0.0002403,88317.0,88316.0,0.34571664]
[1742836377893,0.0002403,88317.0,88316.0,0.231459]
[1742836380561,0.2380183,88317.0,88316.0,0.005]
[1742836382955,0.537804,88308.0,88307.0,0.0003394]
[1742836383168,0.662804,88308.0,88307.0,0.0003394]
[1742836384246,0.79160249,88308.0,88307.0,0.0003394]
[1742836385998,0.79460249,88308.0,88307.0,0.0003394]
[1742836387299,0.665804,88308.0,88307.0,0.0003394]
[1742836387727,0.79460249,88308.0,88307.0,0.0003394]
[1742836389141,0.79460249,88308.0,88274.0,0.011328]
[1742836389142,0.226575,88271.0,88254.0,0.61882]
[1742836389395,0.226575,88271.0,88260.0,0.10131271]
[1742836389396,0.011328,88270.0,88260.0,0.10131271]
[1742836389651,0.02238588,88270.0,88260.0,0.10131271]
[1742836390617,0.02238588,88270.0,88269.0,0.00046285]
[1742836390851,0.02238588,88270.0,88269.0,0.00246285]
[1742836391081,0.02238588,88270.0,88269.0,0.00046285]
[1742836391540,0.32238588,88270.0,88269.0,0.00246285]
[1742836392509,0.32238588,88270.0,88269.0,0.00546285]
[1742836395763,0.32238588,88270.0,88269.0,0.00246285]
[1742836396192,0.54896288,88270.0,88269.0,0.00146285]
[1742836397684,0.54896288,88270.0,88269.0,0.00246285]
[1742836402778,0.75546137,88270.0,88269.0,0.00246285]
[1742836403013,0.75546137,88270.0,88269.0,0.00146285]
[1742836403692,0.80386137,88270.0,88269.0,0.00146285]
[1742836404186,0.80386137,88270.0,88269.0,8.5e-07]
[1742836404446,0.80386137,88270.0,88235.0,0.0003396]
[1742836404447,0.3,88265.0,88235.0,0.0003396]
[1742836404753,0.237997,88236.0,88235.0,0.00038075]
[1742836405534,0.242538,88236.0,88235.0,0.00038075]
[1742836406039,0.2657588,88236.0,88235.0,0.00038075]
[1742836409745,0.242538,88236.0,88235.0,0.00038075]
[1742836410255,0.226664,88236.0,88235.0,0.00038075]
[1742836410508,0.237997,88236.0,88235.0,0.00038075]
[1742836414207,0.237997,88236.0,88235.0,0.00038075]
[1742836414427,0.537997,88236.0,88235.0,0.00038075]